[Event "December 12 Early 2023"]
[Site "https://www.chess.com"]
[Date "2023.12.12"]
[Round "5"]
[White "Asish Panda"]
[Black "Gan-Erdene, Sugar"]
[Result "0-1"]
[Board "49"]
[TimeControl "180+1"]
[WhiteFideId "45012458"]
[BlackFideId "4902980"]
[WhiteElo "2548"]
[BlackElo "2784"]
[WhiteTeam "IND"]
[BlackTeam "MGL"]
[WhiteClock "0:00:03"]
[BlackClock "0:00:29"]

1. e4 {[%clk 0:03:00]}  c5 {[%clk 0:02:59]} 2. Nf3 {[%clk 0:03:00]}  d6 {[%clk 0:03:00]} 3. d4 {[%clk 0:03:00]}  cxd4 {[%clk 0:03:00]} 4. Qxd4 {[%clk 0:03:00]}  Nf6 {[%clk 0:02:58]} 5. e5 {[%clk 0:03:00]}  Nc6 {[%clk 0:02:58]} 6. Bb5 {[%clk 0:03:00]}  dxe5 {[%clk 0:02:36]} 7. Qxd8+ {[%clk 0:02:58]}  Kxd8 {[%clk 0:02:36]} 8. Bxc6 {[%clk 0:02:58]}  bxc6 {[%clk 0:02:36]} 9. Nxe5 {[%clk 0:02:59]}  Ke8 {[%clk 0:02:34]} 10. Nc3 {[%clk 0:02:59]}  e6 {[%clk 0:02:33]} 11. Be3 {[%clk 0:02:54]}  Bb7 {[%clk 0:02:33]} 12. O-O-O {[%clk 0:02:50]}  Nd5 {[%clk 0:02:34]} 13. Bd4 {[%clk 0:02:35]}  c5 {[%clk 0:02:30]} 14. Nxd5 {[%clk 0:02:24]}  Bxd5 {[%clk 0:02:31]} 15. Bc3 {[%clk 0:02:20]}  Bxg2 {[%clk 0:02:28]} 16. Rhe1 {[%clk 0:02:14]}  f6 {[%clk 0:01:52]} 17. Nc4 {[%clk 0:02:06]}  e5 {[%clk 0:01:48]} 18. f4 {[%clk 0:01:46]}  e4 {[%clk 0:01:41]} 19. f5 {[%clk 0:01:11]}  Rd8 {[%clk 0:01:23]} 20. Rxd8+ {[%clk 0:01:02]}  Kxd8 {[%clk 0:01:23]} 21. Nd2 {[%clk 0:01:02]}  Bd6 {[%clk 0:01:22]} 22. Nxe4 {[%clk 0:00:57]}  Bxe4 {[%clk 0:01:18]} 23. Rxe4 {[%clk 0:00:57]}  Bxh2 {[%clk 0:01:18]} 24. Rg4 {[%clk 0:00:55]}  Be5 {[%clk 0:00:57]} 25. Bxe5 {[%clk 0:00:47]}  fxe5 {[%clk 0:00:58]} 26. Rxg7 {[%clk 0:00:48]}  h5 {[%clk 0:00:58]} 27. f6 {[%clk 0:00:19]}  Ke8 {[%clk 0:00:44]} 28. Re7+ {[%clk 0:00:15]}  Kf8 {[%clk 0:00:44]} 29. Rxe5 {[%clk 0:00:10]}  h4 {[%clk 0:00:44]} 30. Kd2 {[%clk 0:00:09]}  h3 {[%clk 0:00:43]} 31. Re1 {[%clk 0:00:09]}  Kf7 {[%clk 0:00:43]} 32. Ke3 {[%clk 0:00:09]}  h2 {[%clk 0:00:41]} 33. Rh1 {[%clk 0:00:08]}  Kxf6 {[%clk 0:00:41]} 34. Kf4 {[%clk 0:00:08]}  Ke6 {[%clk 0:00:39]} 35. c4 {[%clk 0:00:07]}  a5 {[%clk 0:00:33]} 36. b3 {[%clk 0:00:07]}  Kd6 {[%clk 0:00:30]} 37. Kg3 {[%clk 0:00:07]}  Ke5 {[%clk 0:00:30]} 38. a3 {[%clk 0:00:02]}  Kd4 {[%clk 0:00:29]} 39. Kg2 {[%clk 0:00:02]}  Kc3 {[%clk 0:00:29]} 40. Rc1+ {[%clk 0:00:02]}  Kxb3 {[%clk 0:00:29]} 41. Kh1 {[%clk 0:00:03]}  Kxa3 {[%clk 0:00:29]} 42. Rd1 {[%clk 0:00:04]}  Kb3 {[%clk 0:00:29]} 43. Ra1 {[%clk 0:00:03]}  a4 {[%clk 0:00:29]} 0-1

[Event "December 12 Early 2023"]
[Site "https://www.chess.com"]
[Date "2023.12.12"]
[Round "5"]
[White "Sroczynski, Maciej"]
[Black "Mamedov, Edgar"]
[Result "0-1"]
[Board "50"]
[TimeControl "180+1"]
[WhiteFideId "1121472"]
[BlackFideId "13739980"]
[WhiteElo "2530"]
[BlackElo "2783"]
[WhiteTeam "POL"]
[BlackTeam "KAZ"]
[WhiteClock "0:01:00"]
[BlackClock "0:00:05"]

1. d4 {[%clk 0:03:00]}  d5 {[%clk 0:02:59]} 2. c4 {[%clk 0:02:59]}  e6 {[%clk 0:02:59]} 3. Nf3 {[%clk 0:02:59]}  Nf6 {[%clk 0:02:58]} 4. Nc3 {[%clk 0:02:59]}  c6 {[%clk 0:02:57]} 5. cxd5 {[%clk 0:02:58]}  exd5 {[%clk 0:02:56]} 6. Bg5 {[%clk 0:02:57]}  Be7 {[%clk 0:02:51]} 7. Qc2 {[%clk 0:02:55]}  O-O {[%clk 0:02:50]} 8. e3 {[%clk 0:02:54]}  Bg4 {[%clk 0:02:46]} 9. Ne5 {[%clk 0:02:53]}  Nbd7 {[%clk 0:02:32]} 10. Bd3 {[%clk 0:02:49]}  Nxe5 {[%clk 0:01:38]} 11. dxe5 {[%clk 0:02:48]}  Nd7 {[%clk 0:01:29]} 12. Bxh7+ {[%clk 0:02:46]}  Kh8 {[%clk 0:01:29]} 13. Bf4 {[%clk 0:02:45]}  g6 {[%clk 0:01:22]} 14. Bxg6 {[%clk 0:02:44]}  fxg6 {[%clk 0:01:22]} 15. Qxg6 {[%clk 0:02:44]}  Bf5 {[%clk 0:01:21]} 16. Qh6+ {[%clk 0:02:40]}  Bh7 {[%clk 0:01:17]} 17. O-O-O {[%clk 0:02:34]}  Qe8 {[%clk 0:01:10]} 18. e4 {[%clk 0:02:33]}  Qg6 {[%clk 0:01:01]} 19. Qxg6 {[%clk 0:02:24]}  Bxg6 {[%clk 0:01:01]} 20. Bg3 {[%clk 0:02:18]}  Nc5 {[%clk 0:00:53]} 21. exd5 {[%clk 0:02:09]}  Nd3+ {[%clk 0:00:51]} 22. Kd2 {[%clk 0:02:08]}  Nxb2 {[%clk 0:00:43]} 23. Rb1 {[%clk 0:01:57]}  Nc4+ {[%clk 0:00:35]} 24. Ke2 {[%clk 0:01:55]}  Bxb1 {[%clk 0:00:32]} 25. Rxb1 {[%clk 0:01:54]}  cxd5 {[%clk 0:00:04]} 26. Rxb7 {[%clk 0:01:49]}  Bg5 {[%clk 0:00:03]} 27. Nxd5 {[%clk 0:01:47]}  Rad8 {[%clk 0:00:03]} 28. Rb5 {[%clk 0:01:28]}  Nb6 {[%clk 0:00:03]} 29. Nxb6 {[%clk 0:01:19]}  axb6 {[%clk 0:00:04]} 30. f4 {[%clk 0:01:19]}  Bxf4 {[%clk 0:00:04]} 31. Bh4 {[%clk 0:01:17]}  Rd2+ {[%clk 0:00:04]} 32. Kf3 {[%clk 0:01:17]}  Bxe5+ {[%clk 0:00:03]} 33. Ke4 {[%clk 0:01:18]}  Rf4+ {[%clk 0:00:02]} 34. Kxe5 {[%clk 0:01:17]}  Rxh4 {[%clk 0:00:03]} 35. Rxb6 {[%clk 0:01:17]}  Rh5+ {[%clk 0:00:03]} 36. Kf4 {[%clk 0:01:16]}  Rxg2 {[%clk 0:00:03]} 37. Rb8+ {[%clk 0:01:15]}  Kh7 {[%clk 0:00:03]} 38. Rb7+ {[%clk 0:01:15]}  Rg7 {[%clk 0:00:03]} 39. Rb2 {[%clk 0:01:15]}  Ra5 {[%clk 0:00:03]} 40. h4 {[%clk 0:01:15]}  Rga7 {[%clk 0:00:03]} 41. Rb6 {[%clk 0:01:14]}  Ra4+ {[%clk 0:00:03]} 42. Kg5 {[%clk 0:01:14]}  R7a5+ {[%clk 0:00:04]} 43. Kf6 {[%clk 0:01:14]}  Ra6 {[%clk 0:00:05]} 44. Rxa6 {[%clk 0:01:00]}  Rxa6+ {[%clk 0:00:05]} 0-1

[Event "December 12 Early 2023"]
[Site "https://www.chess.com"]
[Date "2023.12.12"]
[Round "5"]
[White "Matveeva, Olga"]
[Black "Gormally, Daniel W"]
[Result "0-1"]
[Board "54"]
[TimeControl "180+1"]
[WhiteFideId "24107018"]
[BlackFideId "406465"]
[WhiteElo "2423"]
[BlackElo "2762"]
[WhiteTeam "RUS"]
[BlackTeam "ENG"]
[WhiteClock "0:00:03"]
[BlackClock "0:01:40"]

1. d4 {[%clk 0:03:00]}  Nf6 {[%clk 0:02:59]} 2. c4 {[%clk 0:03:00]}  e6 {[%clk 0:03:00]} 3. g3 {[%clk 0:03:01]}  d5 {[%clk 0:02:59]} 4. Nf3 {[%clk 0:03:00]}  dxc4 {[%clk 0:02:59]} 5. Bg2 {[%clk 0:02:59]}  Nbd7 {[%clk 0:03:00]} 6. Qa4 {[%clk 0:02:51]}  a6 {[%clk 0:02:59]} 7. Qxc4 {[%clk 0:02:49]}  b5 {[%clk 0:03:00]} 8. Qc2 {[%clk 0:02:48]}  Bb7 {[%clk 0:02:59]} 9. O-O {[%clk 0:02:47]}  Rc8 {[%clk 0:02:58]} 10. a4 {[%clk 0:02:38]}  b4 {[%clk 0:02:55]} 11. Rd1 {[%clk 0:02:19]}  c5 {[%clk 0:02:54]} 12. dxc5 {[%clk 0:01:34]}  Bxc5 {[%clk 0:02:52]} 13. Qb3 {[%clk 0:01:13]}  Qb6 {[%clk 0:02:43]} 14. e3 {[%clk 0:01:11]}  Bd5 {[%clk 0:02:44]} 15. Qd3 {[%clk 0:01:04]}  Qb7 {[%clk 0:02:33]} 16. Nh4 {[%clk 0:00:55]}  Bxg2 {[%clk 0:02:30]} 17. Nxg2 {[%clk 0:00:56]}  Ne5 {[%clk 0:02:31]} 18. Qe2 {[%clk 0:00:50]}  Nf3+ {[%clk 0:02:31]} 19. Kh1 {[%clk 0:00:51]}  Ng4 {[%clk 0:02:11]} 20. h3 {[%clk 0:00:43]}  Nge5 {[%clk 0:02:11]} 21. Nd2 {[%clk 0:00:41]}  O-O {[%clk 0:02:11]} 22. e4 {[%clk 0:00:36]}  Nd4 {[%clk 0:02:04]} 23. Qh5 {[%clk 0:00:33]}  Nd3 {[%clk 0:01:59]} 24. Rf1 {[%clk 0:00:15]}  g6 {[%clk 0:01:55]} 25. Qh6 {[%clk 0:00:14]}  Rfd8 {[%clk 0:01:52]} 26. Nc4 {[%clk 0:00:13]}  Bf8 {[%clk 0:01:51]} 27. Qe3 {[%clk 0:00:10]}  Nc2 {[%clk 0:01:48]} 28. Qb6 {[%clk 0:00:09]}  Qc7 {[%clk 0:01:42]} 29. Qxc7 {[%clk 0:00:08]}  Rxc7 {[%clk 0:01:42]} 30. Bf4 {[%clk 0:00:03]}  Nxf4 {[%clk 0:01:40]} 0-1

[Event "December 12 Early 2023"]
[Site "https://www.chess.com"]
[Date "2023.12.12"]
[Round "5"]
[White "Bazyrtsyrenov, Kirill"]
[Black "Daroczi, Donat"]
[Result "1-0"]
[Board "56"]
[TimeControl "180+1"]
[WhiteFideId "24215872"]
[BlackFideId "788376"]
[WhiteElo "2751"]
[BlackElo "2293"]
[WhiteTeam "RUS"]
[BlackTeam "HUN"]
[WhiteClock "0:00:23"]
[BlackClock "0:00:29"]

1. e4 {[%clk 0:02:53]}  Nc6 {[%clk 0:02:59]} 2. Nf3 {[%clk 0:02:52]}  d6 {[%clk 0:02:59]} 3. d4 {[%clk 0:02:51]}  g6 {[%clk 0:02:56]} 4. Be3 {[%clk 0:02:43]}  Bg7 {[%clk 0:02:56]} 5. Qd2 {[%clk 0:02:42]}  Bg4 {[%clk 0:02:55]} 6. Nc3 {[%clk 0:02:33]}  Bxf3 {[%clk 0:02:49]} 7. gxf3 {[%clk 0:02:34]}  e5 {[%clk 0:02:49]} 8. Ne2 {[%clk 0:02:07]}  exd4 {[%clk 0:02:41]} 9. Nxd4 {[%clk 0:02:07]}  Nxd4 {[%clk 0:02:40]} 10. Bxd4 {[%clk 0:02:07]}  Bxd4 {[%clk 0:02:37]} 11. Qxd4 {[%clk 0:02:07]}  Qf6 {[%clk 0:02:38]} 12. O-O-O {[%clk 0:01:53]}  Qxd4 {[%clk 0:02:29]} 13. Rxd4 {[%clk 0:01:53]}  Ne7 {[%clk 0:02:30]} 14. f4 {[%clk 0:01:49]}  O-O {[%clk 0:02:23]} 15. Bg2 {[%clk 0:01:42]}  Nc6 {[%clk 0:02:21]} 16. Rc4 {[%clk 0:01:41]}  f6 {[%clk 0:02:17]} 17. b4 {[%clk 0:01:37]}  a6 {[%clk 0:02:14]} 18. a4 {[%clk 0:01:36]}  Kg7 {[%clk 0:02:03]} 19. b5 {[%clk 0:01:24]}  axb5 {[%clk 0:02:01]} 20. axb5 {[%clk 0:01:25]}  Ra1+ {[%clk 0:01:59]} 21. Kb2 {[%clk 0:01:23]}  Rxh1 {[%clk 0:02:00]} 22. Bxh1 {[%clk 0:01:23]}  Na7 {[%clk 0:01:57]} 23. Rxc7+ {[%clk 0:01:19]}  Rf7 {[%clk 0:01:46]} 24. b6 {[%clk 0:01:07]}  Nb5 {[%clk 0:01:15]} 25. Rc4 {[%clk 0:00:55]}  d5 {[%clk 0:00:54]} 26. exd5 {[%clk 0:00:40]}  Rd7 {[%clk 0:00:53]} 27. Rc5 {[%clk 0:00:38]}  Nd6 {[%clk 0:00:50]} 28. c4 {[%clk 0:00:29]}  Kf7 {[%clk 0:00:48]} 29. Kb3 {[%clk 0:00:28]}  Ke7 {[%clk 0:00:48]} 30. Bf3 {[%clk 0:00:27]}  Kd8 {[%clk 0:00:47]} 31. Ra5 {[%clk 0:00:27]}  Nf5 {[%clk 0:00:43]} 32. Kc3 {[%clk 0:00:24]}  h5 {[%clk 0:00:39]} 33. c5 {[%clk 0:00:24]}  Ke7 {[%clk 0:00:29]} 34. c6 {[%clk 0:00:23]} 1-0

[Event "December 12 Early 2023"]
[Site "https://www.chess.com"]
[Date "2023.12.12"]
[Round "5"]
[White "Spata, German"]
[Black "Baskakov, Egor"]
[Result "0-1"]
[Board "59"]
[TimeControl "180+1"]
[WhiteFideId "113026"]
[BlackFideId "24197866"]
[WhiteElo "2607"]
[BlackElo "2895"]
[WhiteTeam "ARG"]
[BlackTeam "RUS"]
[WhiteClock "0:00:00"]
[BlackClock "0:00:07"]

1. Nf3 {[%clk 0:02:57]}  Nf6 {[%clk 0:01:51]} 2. b3 {[%clk 0:02:56]}  e6 {[%clk 0:01:50]} 3. Bb2 {[%clk 0:02:57]}  d5 {[%clk 0:01:51]} 4. e3 {[%clk 0:02:57]}  Be7 {[%clk 0:01:51]} 5. d4 {[%clk 0:02:57]}  O-O {[%clk 0:01:52]} 6. Bd3 {[%clk 0:02:58]}  Ne4 {[%clk 0:01:52]} 7. O-O {[%clk 0:02:58]}  f5 {[%clk 0:01:52]} 8. c4 {[%clk 0:02:59]}  c6 {[%clk 0:01:52]} 9. Ne5 {[%clk 0:02:59]}  Bd7 {[%clk 0:01:52]} 10. Nxd7 {[%clk 0:02:56]}  Nxd7 {[%clk 0:01:52]} 11. Nc3 {[%clk 0:02:57]}  Bd6 {[%clk 0:01:52]} 12. f4 {[%clk 0:02:57]}  Qh4 {[%clk 0:01:50]} 13. c5 {[%clk 0:02:55]}  Bc7 {[%clk 0:01:48]} 14. Nxe4 {[%clk 0:02:55]}  fxe4 {[%clk 0:01:48]} 15. Be2 {[%clk 0:02:55]}  g5 {[%clk 0:01:46]} 16. g3 {[%clk 0:02:55]}  Qh6 {[%clk 0:01:45]} 17. Bg4 {[%clk 0:02:41]}  gxf4 {[%clk 0:01:44]} 18. gxf4 {[%clk 0:02:41]}  Kh8 {[%clk 0:01:39]} 19. Kh1 {[%clk 0:02:41]}  Rae8 {[%clk 0:01:33]} 20. Qe2 {[%clk 0:02:36]}  Nf6 {[%clk 0:01:31]} 21. Rg1 {[%clk 0:02:34]}  Rg8 {[%clk 0:01:29]} 22. Rg2 {[%clk 0:02:28]}  Nxg4 {[%clk 0:01:27]} 23. Rxg4 {[%clk 0:02:28]}  Rxg4 {[%clk 0:01:27]} 24. Qxg4 {[%clk 0:02:29]}  Rg8 {[%clk 0:01:28]} 25. Qe2 {[%clk 0:02:27]}  Qh3 {[%clk 0:01:23]} 26. Rg1 {[%clk 0:02:16]}  Rxg1+ {[%clk 0:01:21]} 27. Kxg1 {[%clk 0:02:16]}  Ba5 {[%clk 0:01:18]} 28. a3 {[%clk 0:02:06]}  Bd8 {[%clk 0:01:18]} 29. Bc1 {[%clk 0:01:51]}  Kg7 {[%clk 0:01:08]} 30. Qg2+ {[%clk 0:01:49]}  Qxg2+ {[%clk 0:01:08]} 31. Kxg2 {[%clk 0:01:50]}  Kg6 {[%clk 0:01:08]} 32. Kh3 {[%clk 0:01:43]}  Ba5 {[%clk 0:01:06]} 33. b4 {[%clk 0:01:43]}  Bd8 {[%clk 0:01:05]} 34. Bd2 {[%clk 0:01:42]}  Kf5 {[%clk 0:00:57]} 35. Be1 {[%clk 0:01:40]}  Bc7 {[%clk 0:00:48]} 36. Bg3 {[%clk 0:01:16]}  a5 {[%clk 0:00:47]} 37. Kh4 {[%clk 0:01:11]}  a4 {[%clk 0:00:32]} 38. Kh5 {[%clk 0:01:08]}  b6 {[%clk 0:00:28]} 39. cxb6 {[%clk 0:00:58]}  Bxb6 {[%clk 0:00:29]} 40. h3 {[%clk 0:00:57]}  Bxd4 {[%clk 0:00:16]} 41. exd4 {[%clk 0:00:57]}  e3 {[%clk 0:00:17]} 42. Kh6 {[%clk 0:00:50]}  Ke4 {[%clk 0:00:18]} 43. Kxh7 {[%clk 0:00:49]}  Kxd4 {[%clk 0:00:14]} 44. h4 {[%clk 0:00:29]}  Ke4 {[%clk 0:00:11]} 45. h5 {[%clk 0:00:28]}  d4 {[%clk 0:00:12]} 46. h6 {[%clk 0:00:29]}  d3 {[%clk 0:00:12]} 47. Kg7 {[%clk 0:00:22]}  d2 {[%clk 0:00:12]} 48. h7 {[%clk 0:00:23]}  d1=Q {[%clk 0:00:12]} 49. h8=Q {[%clk 0:00:23]}  Qg4+ {[%clk 0:00:13]} 50. Kf6 {[%clk 0:00:22]}  Qxg3 {[%clk 0:00:13]} 51. Kxe6 {[%clk 0:00:21]}  Qg4+ {[%clk 0:00:12]} 52. Kd6 {[%clk 0:00:21]}  Qxf4+ {[%clk 0:00:13]} 53. Kxc6 {[%clk 0:00:21]}  e2 {[%clk 0:00:12]} 54. Qc3 {[%clk 0:00:19]}  Qe3 {[%clk 0:00:08]} 55. Qe1 {[%clk 0:00:18]}  Qd3 {[%clk 0:00:07]} 56. b5 {[%clk 0:00:17]}  Qc2+ {[%clk 0:00:06]} 57. Kb7 {[%clk 0:00:16]}  Qd1 {[%clk 0:00:05]} 58. Qh4+ {[%clk 0:00:16]}  Kd3 {[%clk 0:00:06]} 59. Qh7+ {[%clk 0:00:14]}  Kc3 {[%clk 0:00:06]} 60. Qc7+ {[%clk 0:00:14]}  Kb3 {[%clk 0:00:06]} 61. Qf7+ {[%clk 0:00:00]}  Kxa3 {[%clk 0:00:07]} 0-1

[Event "December 12 Early 2023"]
[Site "https://www.chess.com"]
[Date "2023.12.12"]
[Round "5"]
[White "Espinoza Villanueva, Rodrigo"]
[Black "Brodsky, David"]
[Result "0-1"]
[Board "62"]
[TimeControl "180+1"]
[WhiteFideId "5140188"]
[BlackFideId "2073250"]
[WhiteElo "2589"]
[BlackElo "2815"]
[WhiteTeam "MEX"]
[BlackTeam "USA"]
[WhiteClock "0:00:00"]
[BlackClock "0:00:04"]

1. Nf3 {[%clk 0:03:00]}  a6 {[%clk 0:03:00]} 2. g3 {[%clk 0:03:01]}  h6 {[%clk 0:02:59]} 3. Bg2 {[%clk 0:03:01]}  Nc6 {[%clk 0:02:52]} 4. O-O {[%clk 0:03:01]}  e5 {[%clk 0:02:52]} 5. d3 {[%clk 0:03:01]}  d5 {[%clk 0:02:50]} 6. c4 {[%clk 0:03:00]}  dxc4 {[%clk 0:02:45]} 7. dxc4 {[%clk 0:03:01]}  Qxd1 {[%clk 0:02:46]} 8. Rxd1 {[%clk 0:03:01]}  Be6 {[%clk 0:02:46]} 9. b3 {[%clk 0:02:58]}  e4 {[%clk 0:02:36]} 10. Ne1 {[%clk 0:02:50]}  f5 {[%clk 0:02:34]} 11. Bb2 {[%clk 0:02:50]}  Nf6 {[%clk 0:02:27]} 12. Nc2 {[%clk 0:02:33]}  Bd6 {[%clk 0:02:21]} 13. Nc3 {[%clk 0:02:24]}  Be5 {[%clk 0:01:50]} 14. Na4 {[%clk 0:02:23]}  Bxb2 {[%clk 0:01:48]} 15. Nxb2 {[%clk 0:02:24]}  Rd8 {[%clk 0:01:45]} 16. Na4 {[%clk 0:02:19]}  Ke7 {[%clk 0:01:42]} 17. Nc3 {[%clk 0:02:13]}  g5 {[%clk 0:01:37]} 18. Rxd8 {[%clk 0:01:58]}  Rxd8 {[%clk 0:01:36]} 19. Rd1 {[%clk 0:01:58]}  Rxd1+ {[%clk 0:01:31]} 20. Nxd1 {[%clk 0:01:59]}  Kd6 {[%clk 0:01:28]} 21. Nc3 {[%clk 0:01:50]}  Ke5 {[%clk 0:01:28]} 22. Kf1 {[%clk 0:01:39]}  f4 {[%clk 0:01:26]} 23. Ke1 {[%clk 0:01:35]}  h5 {[%clk 0:01:16]} 24. Na4 {[%clk 0:00:38]}  b6 {[%clk 0:01:08]} 25. e3 {[%clk 0:00:35]}  f3 {[%clk 0:00:57]} 26. Bf1 {[%clk 0:00:35]}  Nd7 {[%clk 0:00:49]} 27. Kd2 {[%clk 0:00:33]}  a5 {[%clk 0:00:37]} 28. Kc3 {[%clk 0:00:30]}  Nf6 {[%clk 0:00:37]} 29. Nd4 {[%clk 0:00:26]}  Bd7 {[%clk 0:00:34]} 30. Nb2 {[%clk 0:00:25]}  h4 {[%clk 0:00:11]} 31. a3 {[%clk 0:00:20]}  Be8 {[%clk 0:00:09]} 32. c5 {[%clk 0:00:12]}  bxc5 {[%clk 0:00:08]} 33. Nc4+ {[%clk 0:00:12]}  Kd5 {[%clk 0:00:06]} 34. Nb5 {[%clk 0:00:10]}  Ke6 {[%clk 0:00:03]} 35. Nxc7+ {[%clk 0:00:10]}  Ke7 {[%clk 0:00:03]} 36. Nxe8 {[%clk 0:00:10]}  Kxe8 {[%clk 0:00:04]} 37. a4 {[%clk 0:00:03]}  Ke7 {[%clk 0:00:02]} 38. Bh3 {[%clk 0:00:02]}  g4 {[%clk 0:00:02]} 39. Bf1 {[%clk 0:00:02]}  hxg3 {[%clk 0:00:03]} 40. hxg3 {[%clk 0:00:03]}  Nh5 {[%clk 0:00:03]} 41. Nb6 {[%clk 0:00:02]}  Kd6 {[%clk 0:00:03]} 42. Kc4 {[%clk 0:00:02]}  Ne5+ {[%clk 0:00:02]} 43. Kb5 {[%clk 0:00:01]}  Nd3 {[%clk 0:00:03]} 44. Bxd3 {[%clk 0:00:01]}  exd3 {[%clk 0:00:04]} 45. Nc4+ {[%clk 0:00:01]}  Kd5 {[%clk 0:00:04]} 46. Kxa5 {[%clk 0:00:00]}  Nxg3 {[%clk 0:00:04]} 0-1

[Event "December 12 Early 2023"]
[Site "https://www.chess.com"]
[Date "2023.12.12"]
[Round "5"]
[White "Lagarde, Maxime"]
[Black "Andreev, Konstantin"]
[Result "1-0"]
[Board "64"]
[TimeControl "180+1"]
[WhiteFideId "662399"]
[BlackFideId "24239305"]
[WhiteElo "2770"]
[BlackElo "2564"]
[WhiteTeam "FRA"]
[BlackTeam "ITA"]
[WhiteClock "0:00:27"]
[BlackClock "0:01:30"]

1. d4 {[%clk 0:03:00]}  Nf6 {[%clk 0:02:58]} 2. Bg5 {[%clk 0:03:00]}  Ne4 {[%clk 0:02:55]} 3. h4 {[%clk 0:02:59]}  h6 {[%clk 0:02:54]} 4. Bf4 {[%clk 0:02:57]}  d5 {[%clk 0:02:54]} 5. Nd2 {[%clk 0:02:56]}  Nf6 {[%clk 0:02:46]} 6. e3 {[%clk 0:02:55]}  Bf5 {[%clk 0:02:46]} 7. Ne2 {[%clk 0:02:53]}  Nbd7 {[%clk 0:02:46]} 8. Ng3 {[%clk 0:02:51]}  Bh7 {[%clk 0:02:45]} 9. Bd3 {[%clk 0:02:50]}  c5 {[%clk 0:02:46]} 10. Bxh7 {[%clk 0:02:46]}  Nxh7 {[%clk 0:02:45]} 11. c3 {[%clk 0:02:44]}  e6 {[%clk 0:02:43]} 12. Nf3 {[%clk 0:02:39]}  Nhf6 {[%clk 0:02:41]} 13. Qd3 {[%clk 0:02:36]}  Qb6 {[%clk 0:02:40]} 14. O-O-O {[%clk 0:02:35]}  c4 {[%clk 0:02:39]} 15. Qc2 {[%clk 0:02:35]}  Bd6 {[%clk 0:02:36]} 16. Kb1 {[%clk 0:02:22]}  Bxf4 {[%clk 0:02:34]} 17. exf4 {[%clk 0:02:23]}  O-O-O {[%clk 0:02:35]} 18. Ne5 {[%clk 0:02:15]}  Rhf8 {[%clk 0:02:34]} 19. Rde1 {[%clk 0:02:08]}  Kb8 {[%clk 0:02:33]} 20. f5 {[%clk 0:01:54]}  Nxe5 {[%clk 0:02:26]} 21. Rxe5 {[%clk 0:01:55]}  Nd7 {[%clk 0:02:25]} 22. Re2 {[%clk 0:01:54]}  exf5 {[%clk 0:02:22]} 23. Qxf5 {[%clk 0:01:50]}  Qd6 {[%clk 0:02:21]} 24. Rhe1 {[%clk 0:01:48]}  g6 {[%clk 0:02:19]} 25. Qf3 {[%clk 0:01:45]}  Nf6 {[%clk 0:02:13]} 26. Re5 {[%clk 0:01:44]}  h5 {[%clk 0:02:10]} 27. R1e2 {[%clk 0:01:22]}  Ng4 {[%clk 0:02:07]} 28. Re7 {[%clk 0:01:20]}  Nf6 {[%clk 0:02:07]} 29. Re1 {[%clk 0:01:08]}  Rde8 {[%clk 0:02:06]} 30. Rxe8+ {[%clk 0:01:03]}  Nxe8 {[%clk 0:02:06]} 31. Qe3 {[%clk 0:00:49]}  Nf6 {[%clk 0:02:05]} 32. Qe7 {[%clk 0:00:47]}  Qxe7 {[%clk 0:01:59]} 33. Rxe7 {[%clk 0:00:48]}  Kc8 {[%clk 0:02:00]} 34. f3 {[%clk 0:00:46]}  Ng8 {[%clk 0:02:00]} 35. Re5 {[%clk 0:00:46]}  Rd8 {[%clk 0:02:01]} 36. Ne2 {[%clk 0:00:43]}  f6 {[%clk 0:02:01]} 37. Re3 {[%clk 0:00:39]}  Kd7 {[%clk 0:02:00]} 38. Nf4 {[%clk 0:00:39]}  Ne7 {[%clk 0:02:00]} 39. Ne6 {[%clk 0:00:36]}  Re8 {[%clk 0:01:59]} 40. Nc5+ {[%clk 0:00:36]}  Kc8 {[%clk 0:01:59]} 41. Re6 {[%clk 0:00:34]}  b6 {[%clk 0:01:58]} 42. Na6 {[%clk 0:00:33]}  f5 {[%clk 0:01:52]} 43. Nb4 {[%clk 0:00:30]}  Kd7 {[%clk 0:01:52]} 44. Re5 {[%clk 0:00:29]}  Kd6 {[%clk 0:01:30]} 45. Nxd5 {[%clk 0:00:27]} 1-0

[Event "December 12 Early 2023"]
[Site "https://www.chess.com"]
[Date "2023.12.12"]
[Round "5"]
[White "Bardyk, Artem"]
[Black "Santos Flores, Alberto"]
[Result "1-0"]
[Board "65"]
[TimeControl "180+1"]
[WhiteFideId "34349979"]
[BlackFideId "3601234"]
[WhiteElo "2764"]
[BlackElo "2554"]
[WhiteTeam "RUS"]
[BlackTeam "ECU"]
[WhiteClock "0:00:04"]
[BlackClock "0:00:00"]

1. e4 {[%clk 0:03:00]}  e6 {[%clk 0:02:57]} 2. d4 {[%clk 0:03:00]}  d5 {[%clk 0:02:58]} 3. Nc3 {[%clk 0:03:00]}  Nf6 {[%clk 0:02:58]} 4. exd5 {[%clk 0:02:59]}  exd5 {[%clk 0:02:57]} 5. Bg5 {[%clk 0:02:59]}  Be7 {[%clk 0:02:56]} 6. Qd2 {[%clk 0:02:58]}  O-O {[%clk 0:02:56]} 7. O-O-O {[%clk 0:02:58]}  Re8 {[%clk 0:02:56]} 8. Bd3 {[%clk 0:02:51]}  c6 {[%clk 0:02:55]} 9. Nf3 {[%clk 0:02:49]}  Bg4 {[%clk 0:02:53]} 10. Rde1 {[%clk 0:02:46]}  Bxf3 {[%clk 0:02:50]} 11. gxf3 {[%clk 0:02:47]}  Nh5 {[%clk 0:02:37]} 12. Bxe7 {[%clk 0:02:34]}  Rxe7 {[%clk 0:02:37]} 13. Rxe7 {[%clk 0:02:35]}  Qxe7 {[%clk 0:02:37]} 14. Re1 {[%clk 0:02:36]}  Qd8 {[%clk 0:02:32]} 15. Ne2 {[%clk 0:01:58]}  Nd7 {[%clk 0:02:27]} 16. Ng3 {[%clk 0:01:55]}  Qh4 {[%clk 0:02:11]} 17. Nxh5 {[%clk 0:01:14]}  Qxh5 {[%clk 0:02:11]} 18. Qf4 {[%clk 0:01:15]}  Nf6 {[%clk 0:02:05]} 19. Rg1 {[%clk 0:01:11]}  Kh8 {[%clk 0:01:34]} 20. a3 {[%clk 0:01:01]}  Re8 {[%clk 0:01:31]} 21. Kb1 {[%clk 0:01:01]}  Qh6 {[%clk 0:01:12]} 22. Qc7 {[%clk 0:00:53]}  Kg8 {[%clk 0:00:59]} 23. Qxb7 {[%clk 0:00:44]}  Qxh2 {[%clk 0:00:58]} 24. Rf1 {[%clk 0:00:35]}  h5 {[%clk 0:00:38]} 25. Qxc6 {[%clk 0:00:27]}  h4 {[%clk 0:00:38]} 26. Qb7 {[%clk 0:00:13]}  h3 {[%clk 0:00:37]} 27. Bb5 {[%clk 0:00:04]}  Qg2 {[%clk 0:00:35]} 28. Rc1 {[%clk 0:00:04]}  Rf8 {[%clk 0:00:25]} 29. Bf1 {[%clk 0:00:02]}  Qxf3 {[%clk 0:00:21]} 30. Qb3 {[%clk 0:00:02]}  Qxb3 {[%clk 0:00:18]} 31. cxb3 {[%clk 0:00:03]}  h2 {[%clk 0:00:19]} 32. Bg2 {[%clk 0:00:03]}  Re8 {[%clk 0:00:19]} 33. Rh1 {[%clk 0:00:04]}  Re2 {[%clk 0:00:15]} 34. Rxh2 {[%clk 0:00:02]}  Rxf2 {[%clk 0:00:15]} 35. Ka2 {[%clk 0:00:01]}  Ng4 {[%clk 0:00:14]} 36. Rh5 {[%clk 0:00:02]}  Rxg2 {[%clk 0:00:14]} 37. Rxd5 {[%clk 0:00:03]}  Rd2 {[%clk 0:00:12]} 38. Rd8+ {[%clk 0:00:03]}  Kh7 {[%clk 0:00:12]} 39. Rd7 {[%clk 0:00:04]}  Kg6 {[%clk 0:00:12]} 40. Rxa7 {[%clk 0:00:03]}  Rxd4 {[%clk 0:00:12]} 41. b4 {[%clk 0:00:03]}  Ne5 {[%clk 0:00:11]} 42. b5 {[%clk 0:00:03]}  f5 {[%clk 0:00:10]} 43. b6 {[%clk 0:00:03]}  f4 {[%clk 0:00:10]} 44. b7 {[%clk 0:00:03]}  Nc6 {[%clk 0:00:08]} 45. Ra6 {[%clk 0:00:04]}  Kf5 {[%clk 0:00:00]} 46. Rxc6 {[%clk 0:00:04]} 1-0